fUST/lending_fUST_20251217
["ID","MTS","AMOUNT","RATE_DAILY","PERIOD"]
[398897156,1765973439550,-500.0,0.00031407,2]
[398897157,1765973439562,-500.0,0.00031407,2]
[398897158,1765973439572,-500.0,0.00031407,2]
[398897159,1765973439581,-500.0,0.00031407,2]
[398897160,1765973439714,-500.0,0.00031407,2]
[398897161,1765973439725,-500.0,0.00031407,2]
[398897162,1765973439734,-500.0,0.00031407,2]
[398897163,1765973439745,-500.0,0.00031407,2]
[398897164,1765973439755,-500.0,0.00031407,2]
[398897165,1765973439764,-500.0,0.00031407,2]
[398897166,1765973439774,-500.0,0.00031407,2]
[398897167,1765973439783,-500.0,0.00031407,2]
[398897168,1765973439793,-500.0,0.00031407,2]
[398897169,1765973439802,-500.0,0.00031407,2]
[398897170,1765973439811,-500.0,0.00031407,2]
[398897171,1765973439821,-500.0,0.00031407,2]
[398897172,1765973439830,-500.0,0.00031407,2]
[398897173,1765973439840,-500.0,0.00031407,2]
[398897174,1765973439849,-500.0,0.00031407,2]
[398897175,1765973439859,-500.0,0.00031407,2]
[398897176,1765973439868,-500.0,0.00031407,2]
[398897177,1765973439878,-500.0,0.00031407,2]
[398897178,1765973439887,-500.0,0.00031407,2]
[398897179,1765973439897,-500.0,0.00031407,2]
[398897180,1765973439906,-500.0,0.00031407,2]
[398897181,1765973439915,-500.0,0.00031407,2]
[398897182,1765973439925,-500.0,0.00031407,2]
[398897183,1765973439934,-500.0,0.00031407,2]
[398897184,1765973439943,-500.0,0.00031407,2]
[398897185,1765973439953,-500.0,0.00031407,2]
[398897186,1765973439962,-500.0,0.00031407,2]
[398897187,1765973439971,-412.43088419,0.00031407,2]
[398897188,1765973439980,-500.0,0.00031407,2]
[398897189,1765973439990,-500.0,0.00031407,2]
[398897190,1765973439999,-500.0,0.00031408,2]
[398897191,1765973440008,-500.0,0.00031545,2]
[398897192,1765973440017,-500.0,0.00031682,2]
[398897193,1765973440027,-500.0,0.00031819,2]
[398897194,1765973440037,-351.18018485,0.00031819,2]
[398897195,1765973440050,-108.81981515,0.00031819,2]
[398897196,1765973440059,-231.0,0.0003189,2]
[398897197,1765973440068,-418.57010379,0.00031956,2]
[398897198,1765973440077,-500.0,0.0003216,2]
[398897199,1765973440086,-48.06214572,0.00032367,2]
[398897207,1765973440690,-511.93785428,0.00032367,2]
[398897208,1765973440700,-495.61924172,0.00032849,2]
[398897209,1765973440743,-1367.2340891,0.00032849,2]
[398897210,1765973440753,-173.05889936,0.00032877,2]
[398897211,1765973440762,-660.0,0.00032915,2]
[398897212,1765973440772,-649.78174,0.00033165,2]
[398897213,1765973440781,-12012.0,0.000332,120]
[398897214,1765973440794,-319.33496789,0.0003329,2]
[398897215,1765973440804,-392.86741465,0.0003329,2]
[398897216,1765973440814,-414.8,0.0003329,2]
[398897217,1765973440824,-514.84070869,0.0003329,2]
[398897218,1765973440834,-250.0,0.0003329,2]
[398897219,1765973440843,-250.0,0.0003329,2]
[398897220,1765973440853,-250.0,0.0003329,2]
[398897221,1765973440863,-250.0,0.0003329,2]
[398897222,1765973440872,-245.06330286,0.0003329,2]
[398897223,1765973440882,-250.0,0.0003329,2]
[398897224,1765973440891,-250.0,0.0003329,2]
[398897225,1765973440901,-250.0,0.0003329,2]
[398897226,1765973440911,-250.0,0.0003329,2]
[398897227,1765973440920,-250.0,0.0003329,2]
[398897228,1765973440930,-250.0,0.0003329,2]
[398897229,1765973440939,-250.0,0.0003329,2]
[398897230,1765973440948,-250.0,0.0003329,2]
[398897231,1765973440957,-250.0,0.0003329,2]
[398897232,1765973440966,-250.0,0.0003329,2]
[398897233,1765973440975,-250.0,0.0003329,2]
[398897234,1765973440984,-256.91303469,0.0003329,2]
[398897235,1765973440994,-250.0,0.0003329,2]
[398897236,1765973441003,-250.0,0.0003329,2]
[398897237,1765973441012,-250.0,0.0003329,2]
[398897238,1765973441021,-250.0,0.0003329,2]
[398897239,1765973441030,-250.0,0.0003329,2]
[398897240,1765973441041,-250.0,0.0003329,2]
[398897241,1765973441050,-200.0,0.0003329,2]
[398897242,1765973441059,-760.0,0.00033463,2]
[398897243,1765973441068,-163.56208638,0.00033759,2]
[398897244,1765973441078,-533.88981491,0.00033838,2]
[398897245,1765973441087,-200.0,0.00033838,2]
[398897246,1765973441096,-258.0,0.0003389,120]
[398897247,1765973441105,-860.0,0.00034011,2]
[398897248,1765973441114,-553.64373807,0.00034386,2]
[398897249,1765973441122,-200.0,0.00034386,2]
[398897250,1765973441131,-394.992,0.00034558,2]
[398897251,1765973441141,-960.0,0.00034559,2]
[398897252,1765973441150,-449.30070717,0.00034849,120]
[398897253,1765973441160,-237.7065761,0.00034934,2]
[398897254,1765973441169,-200.0,0.00034934,2]
[398897255,1765973441182,-218.236,0.00034996,2]
[398897256,1765973441191,-237.925,0.00034996,2]
[398897257,1765973441199,-250.0,0.00034996,2]
[398897258,1765973441209,-258.484,0.00034996,2]
[398897259,1765973441218,-266.391,0.00034996,2]
[398897260,1765973441228,-150.0,0.00035,2]
[398897261,1765973441238,-151.0,0.00035,120]
[398897262,1765973441249,-151.37,0.00035081,60]
[398897263,1765973441260,-537.38,0.00035084,60]
[398897264,1765973441269,-1060.0,0.00035107,2]
[398897265,1765973441278,-151.37,0.00035181,60]
[398897266,1765973441288,-537.38,0.00035184,60]
[398897267,1765973441297,-151.37,0.00035281,60]
[398897268,1765973441306,-537.38,0.00035284,60]
[398897269,1765973441317,-151.37,0.00035381,60]
[398897270,1765973441326,-537.38,0.00035384,60]
[398897271,1765973441336,-243.66129,0.000354,120]
[398897272,1765973441347,-200.0,0.000354,120]
[398897273,1765973441356,-245.44902,0.000354,120]
[398897274,1765973441365,-200.0,0.000354,120]
[398897275,1765973441374,-151.37,0.00035481,60]
[398897276,1765973441383,-200.0,0.00035482,2]
[398897277,1765973441392,-295.86926271,0.00035483,120]
[398897278,1765973441401,-537.38,0.00035484,60]
[398897279,1765973441410,-151.37,0.00035581,60]
[398897280,1765973441419,-537.38,0.00035584,60]
[398897281,1765973441428,-740.0,0.00035654,2]
[398897282,1765973441437,-151.37,0.00035681,60]
[398897283,1765973441446,-537.38,0.00035684,60]
[398897284,1765973441455,-600.0,0.000357,30]
[398897285,1765973441464,-151.0,0.000357,120]
[398897286,1765973441473,-151.37,0.00035781,60]
[398897287,1765973441482,-537.38,0.00035784,60]
[398897288,1765973441491,-151.37,0.00035881,60]
[398897289,1765973441500,-537.38,0.00035884,60]
[398897290,1765973441509,-178.46831572,0.0003589,120]
[398897291,1765973441518,-151.37,0.00035981,60]
[398897292,1765973441526,-537.38,0.00035984,60]
[398897293,1765973441536,-200.0,0.0003603,2]
[398897294,1765973441546,-151.37,0.00036081,60]
[398897295,1765973441555,-537.38,0.00036084,60]
[398897296,1765973441564,-151.37,0.00036181,60]
[398897297,1765973441573,-537.38,0.00036184,60]
[398897298,1765973441582,-151.37,0.00036281,60]
[398897299,1765973441591,-537.38,0.00036284,60]
[398897300,1765973441600,-151.0,0.000363,120]
[398897301,1765973441609,-559.2,0.00036374,3]
[398897302,1765973441617,-151.37,0.00036381,60]
[398897303,1765973441627,-537.38,0.00036384,60]
[398897304,1765973441635,-151.37,0.00036481,60]
[398897305,1765973441644,-537.38,0.00036484,60]
[398897306,1765973441654,-304.66287509,0.00036486,5]
[398897307,1765973441664,-167.35894294,0.00036487,5]
[398897308,1765973441673,-200.0,0.00036578,2]
[398897309,1765973441682,-151.37,0.00036581,60]
[398897310,1765973441691,-537.38,0.00036584,60]
[398897311,1765973441700,-151.37,0.00036681,60]
[398897312,1765973441709,-537.38,0.00036684,60]
[398897313,1765973441718,-636.82490606,0.00036722,9]
[398897314,1765973441726,-151.37,0.00036781,60]
[398897315,1765973441735,-537.38,0.00036784,60]
[398897316,1765973441744,-257.67736308,0.00036838,2]
[398897317,1765973441753,-185.93,0.00036855,10]
[398897318,1765973441762,-151.37,0.00036881,60]
[398897319,1765973441772,-537.38,0.00036884,60]
[398897320,1765973441781,-151.37,0.00036981,60]
[398897321,1765973441790,-537.38,0.00036984,60]
[398897322,1765973441800,-151.0,0.00037,120]
[398897323,1765973441809,-151.37,0.00037081,60]
[398897324,1765973441818,-537.38,0.00037084,60]
[398897325,1765973441827,-200.0,0.00037126,2]
[398897326,1765973441837,-151.37,0.00037181,60]
[398897327,1765973441846,-537.38,0.00037184,60]
[398897328,1765973441855,-151.37,0.00037281,60]
[398897329,1765973441864,-537.38,0.00037284,60]
[398897330,1765973441874,-151.37,0.00037381,60]
[398897331,1765973441883,-537.38,0.00037384,60]
[398897332,1765973441892,-200.0,0.000374,120]
[398897333,1765973441901,-200.0,0.000374,120]
[398897334,1765973441911,-151.37,0.00037481,60]
[398897335,1765973441920,-537.38,0.00037484,60]
[398897336,1765973441930,-151.37,0.00037581,60]
[398897337,1765973441939,-537.615,0.00037584,60]
[398897338,1765973441949,-151.0,0.000376,120]
[398897339,1765973441958,-200.0,0.00037674,2]
[398897340,1765973441968,-151.37,0.00037681,60]
[398897341,1765973441977,-151.37,0.00037781,60]
[398897342,1765973441986,-6007.35075868,0.00037822,30]
[398897343,1765973441995,-151.57544,0.00037822,120]
[398897344,1765973442005,-151.57544,0.00037822,120]
[398897345,1765973442013,-151.57544,0.00037822,120]
[398897346,1765973442023,-151.57544,0.00037822,120]
[398897347,1765973442032,-151.57544,0.00037822,120]
[398897348,1765973442041,-151.57544,0.00037822,120]
[398897349,1765973442051,-151.57544,0.00037822,120]
[398897350,1765973442060,-151.57544,0.00037822,120]
[398897351,1765973442070,-151.57544,0.00037822,120]
[398897352,1765973442079,-151.57544,0.00037822,120]
[398897353,1765973442088,-151.57544,0.00037822,120]
[398897354,1765973442097,-151.57544,0.00037822,120]
[398897355,1765973442106,-151.57544,0.00037822,120]
[398897356,1765973442115,-151.57544,0.00037822,120]
[398897357,1765973442124,-151.57544,0.00037822,120]
[398897358,1765973442132,-151.57544,0.00037822,120]
[398897359,1765973442141,-151.57544,0.00037822,120]
[398897360,1765973442150,-151.57544,0.00037822,120]
[398897361,1765973442158,-151.57544,0.00037822,120]
[398897362,1765973442167,-151.57544,0.00037822,120]
[398897363,1765973442177,-151.57544,0.00037822,120]
[398897364,1765973442189,-151.57544,0.00037822,120]
[398897365,1765973442199,-151.57544,0.00037822,120]
[398897366,1765973442208,-151.57544,0.00037822,120]
[398897367,1765973442218,-151.57544,0.00037822,120]
[398897368,1765973442226,-151.57544,0.00037822,120]
[398897369,1765973442235,-151.57544,0.00037822,120]
[398897370,1765973442244,-151.57544,0.00037822,120]
[398897371,1765973442253,-151.57544,0.00037822,120]
[398897372,1765973442262,-151.57544,0.00037822,120]
[398897373,1765973442271,-151.57544,0.00037822,120]
[398897374,1765973442280,-151.57544,0.00037822,120]
[398897375,1765973442289,-151.57544,0.00037822,120]
[398897376,1765973442298,-151.57544,0.00037822,120]
[398897377,1765973442307,-151.57544,0.00037822,120]
[398897378,1765973442315,-151.57544,0.00037822,120]
[398897379,1765973442324,-151.57544,0.00037822,120]
[398897380,1765973442333,-151.57544,0.00037822,120]
[398897381,1765973442342,-151.57544,0.00037822,120]
[398897382,1765973442351,-151.57544,0.00037822,120]
[398897383,1765973442360,-151.57544,0.00037822,120]
[398897384,1765973442369,-151.57544,0.00037822,120]
[398897385,1765973442379,-151.57544,0.00037822,120]
[398897386,1765973442388,-151.57544,0.00037822,120]
[398897387,1765973442396,-151.57544,0.00037822,120]
[398897388,1765973442406,-151.57544,0.00037822,120]
[398897389,1765973442415,-151.57544,0.00037822,120]
[398897390,1765973442424,-151.57544,0.00037822,120]
[398897391,1765973442433,-151.57544,0.00037822,120]
[398897392,1765973442442,-151.57544,0.00037822,120]
[398897393,1765973442451,-151.57544,0.00037822,120]
[398897394,1765973442459,-151.57544,0.00037822,120]
[398897395,1765973442468,-151.57544,0.00037822,120]
[398897396,1765973442478,-151.57544,0.00037822,120]
[398897397,1765973442486,-151.57544,0.00037822,120]
[398897398,1765973442495,-151.57544,0.00037822,120]
[398897399,1765973442504,-151.57544,0.00037822,120]
[398897400,1765973442513,-151.57544,0.00037822,120]
[398897401,1765973442522,-151.57544,0.00037822,120]
[398897402,1765973442531,-151.57544,0.00037822,120]
[398897403,1765973442540,-151.57544,0.00037822,120]
[398897404,1765973442549,-151.57544,0.00037822,120]
[398897405,1765973442558,-151.57544,0.00037822,120]
[398897406,1765973442566,-151.57544,0.00037822,120]
[398897407,1765973442575,-151.57544,0.00037822,120]
[398897408,1765973442584,-151.57544,0.00037822,120]
[398897409,1765973442593,-151.57544,0.00037822,120]
[398897410,1765973442602,-151.57544,0.00037822,120]
[398897411,1765973442610,-151.57544,0.00037822,120]
[398897412,1765973442619,-151.57544,0.00037822,120]
[398897413,1765973442628,-151.57544,0.00037822,120]
[398897414,1765973442638,-151.57544,0.00037822,120]
[398897415,1765973442647,-151.57544,0.00037822,120]
[398897416,1765973442656,-151.57544,0.00037822,120]
[398897417,1765973442664,-151.57544,0.00037822,120]
[398897418,1765973442673,-151.57544,0.00037822,120]
[398897419,1765973442683,-151.57544,0.00037822,120]
[398897420,1765973442692,-151.57544,0.00037822,120]
[398897421,1765973442701,-151.57544,0.00037822,120]
[398897422,1765973442710,-151.57544,0.00037822,120]
[398897423,1765973442718,-151.57544,0.00037822,120]
[398897424,1765973442727,-151.57544,0.00037822,120]
[398897425,1765973442736,-151.57544,0.00037822,120]
[398897426,1765973442745,-151.57544,0.00037822,120]
[398897427,1765973442754,-150.0,0.00037822,2]
[398897428,1765973442763,-500.0,0.00037822,120]
[398897429,1765973442772,-151.37,0.00037881,60]
[398897430,1765973442781,-151.37,0.00037981,60]
[398897431,1765973442791,-150.0,0.00037996,2]
[398897432,1765973442800,-150.0,0.00037996,2]
[398897433,1765973442810,-151.37,0.00038081,60]
[398897434,1765973442819,-151.37,0.00038181,60]
[398897435,1765973442829,-310.0,0.00038222,2]
[398897436,1765973442839,-281.12,0.00038247,30]
[398897437,1765973442848,-151.37,0.00038281,60]
[398897438,1765973442857,-151.0,0.000383,120]
[398897439,1765973442866,-251.31239,0.00038356,120]
[398897440,1765973442875,-251.31239,0.00038356,120]
[398897441,1765973442885,-251.31239,0.00038356,120]
[398897442,1765973442894,-251.31239,0.00038356,120]
[398897443,1765973442903,-251.31239,0.00038356,120]
[398897444,1765973442913,-251.31239,0.00038356,120]
[398897445,1765973442922,-251.31239,0.00038356,120]
[398897446,1765973442931,-251.31239,0.00038356,120]
[398897447,1765973442941,-169.32270667,0.00038362,5]
[398897448,1765973442950,-151.37,0.00038381,120]
[398897449,1765973442959,-151.37,0.00038481,120]
[398897450,1765973442968,-151.37,0.00038581,120]
[398897451,1765973442978,-283.59273793,0.0003868,2]
[398897452,1765973442987,-151.37,0.00038681,120]
[398897453,1765973442996,-151.37,0.00038781,120]
[398897455,1765973443005,-151.37,0.00038881,120]
[398897457,1765973443014,-151.0,0.000389,120]
[398897459,1765973443023,-151.37,0.00038981,120]
[398897460,1765973443032,-151.0,0.00039041,120]
[398897461,1765973443042,-151.0,0.00039041,120]
[398897462,1765973443051,-151.37,0.00039081,120]
[398897463,1765973443060,-151.37,0.00039181,120]
[398897464,1765973443069,-432.0,0.0003927,60]
[398897465,1765973443078,-151.37,0.00039281,120]
[398897466,1765973443087,-296.2962963,0.00039303,2]
[398897467,1765973443097,-151.37,0.00039381,120]
[398897468,1765973443106,-200.0,0.000394,120]
[398897469,1765973443116,-151.37,0.00039481,120]
[398897470,1765973443125,-151.37,0.00039581,120]
[398897471,1765973443135,-151.0,0.000396,120]
[398897472,1765973443144,-649.78174,0.00039654,2]
[398897473,1765973443153,-151.37,0.00039681,120]
[398897474,1765973443162,-151.37,0.00039781,120]
[398897475,1765973443171,-151.37,0.00039881,120]
[398897477,1765973443185,-200.0,0.0003989,60]
[398897479,1765973443194,-151.37,0.00039981,120]
[398897480,1765973443203,-794.71241543,0.0004,120]
[398897514,1765973643292,501.38634066,0.00013699,2]
[398897515,1765973956411,-207.17101082,0.00016,2]
[398897516,1765973985357,150.0,9.149e-05,2]
[398897517,1765973985864,150.0,9.981e-05,2]
[398897518,1765974017648,-33.82898918,0.00016,2]
[398897519,1765974017670,-218.36568363,0.00016,2]
[398897520,1765974020475,-167.60864518,0.00016,2]
[398897521,1765974022562,-247.28740276,0.00016,2]
[398897522,1765974051522,150.0,9.221e-05,2]
[398897523,1765974051946,150.0,0.00010059,2]
[398897524,1765974052362,150.0,0.00010898,2]
[398897525,1765974052755,150.0,0.00011736,2]
[398897531,1765974374756,655.216798,0.00013699,2]
[398897532,1765974444125,-18.73826843,0.00016,2]
[398897533,1765974444147,-150.0,0.00018301,2]
[398897534,1765974444168,-655.216798,0.00020187,2]
[398897535,1765974444188,-211.98124082,0.00020301,2]
[398897536,1765974444209,-3892.39733628,0.00025204,14]
[398897540,1765974541446,-197.6,0.00019,2]
[398897541,1765974541467,-121.29119493,0.00019,2]
[398897542,1765974561107,-4358.51938363,0.00019,2]
[398897543,1765974571757,150.0,8.912e-05,2]
[398897544,1765974571910,-356.01880504,0.00019,2]
[398897545,1765974572153,150.0,9.722e-05,2]
[398897546,1765974576507,-247.68464251,0.00019,2]
[398897547,1765974630263,-379.0,0.00018999,2]
[398897548,1765974630288,-11916.56525795,0.00019,2]
[398897549,1765974630312,-703.0,0.00019,2]
[398897550,1765974630334,-9009.42855783,0.0002,7]
[398897551,1765974630358,-2000.0,0.00025203,14]
[398897552,1765974630380,-1734.81676372,0.00025204,14]
[398897553,1765974630402,-655.216798,0.00026676,2]
[398897554,1765974630425,-2000.0,0.00028777,15]
[398897555,1765974630448,-2000.0,0.00028815,7]
[398897590,1765974634837,500.0,0.00025203,2]
[398897591,1765974634878,500.0,0.00025203,2]
[398897592,1765974634918,500.0,0.00025203,2]
[398897593,1765974634961,500.0,0.00025203,2]
[398897594,1765974634995,500.0,0.00025203,2]
[398897595,1765974635027,500.0,0.00025203,2]
[398897596,1765974635060,500.0,0.00025203,2]
[398897597,1765974635090,500.0,0.00025203,2]
[398897598,1765974635120,500.0,0.00025203,2]
[398897599,1765974635149,500.0,0.00025203,2]
[398897600,1765974635180,500.0,0.00025203,2]
[398897601,1765974635210,500.0,0.00025203,2]
[398897602,1765974635243,500.0,0.00025203,2]
[398897603,1765974635276,500.0,0.00025203,2]
[398897604,1765974635309,500.0,0.00025203,2]
[398897605,1765974635341,500.0,0.00025203,2]
[398897606,1765974635374,500.0,0.00025203,2]
[398897607,1765974635412,500.0,0.00025203,2]
[398897608,1765974635442,291.24308842,0.00025203,2]
[398897609,1765974635470,500.0,0.00025203,2]
[398897610,1765974635498,500.0,0.00025203,2]
[398897611,1765974635528,500.0,0.00025203,2]
[398897612,1765974635568,500.0,0.00025203,2]
[398897613,1765974635598,500.0,0.00025203,2]
[398897614,1765974635628,500.0,0.00025203,2]
[398897615,1765974635658,500.0,0.00025203,2]
[398897616,1765974635693,500.0,0.00025203,2]
[398897617,1765974635724,500.0,0.00025203,2]
[398897618,1765974635754,500.0,0.00025203,2]
[398897619,1765974635784,500.0,0.00025203,2]
[398897620,1765974635815,500.0,0.00025203,2]
[398897621,1765974635849,500.0,0.00025203,2]
[398897622,1765974635877,500.0,0.00025203,2]
[398897623,1765974635906,500.0,0.00025203,2]
[398897624,1765974635937,500.0,0.00025203,2]
[398897625,1765974635966,500.0,0.00025203,2]
[398897626,1765974635995,500.0,0.00025203,2]
[398897627,1765974636024,500.0,0.00025203,2]
[398897628,1765974636072,500.0,0.00025203,2]
[398897629,1765974636108,310.72953408,0.00025203,2]
[398897630,1765974636801,-189.27046592,0.00025203,2]
[398897631,1765974636827,-500.0,0.00025203,2]
[398897632,1765974636851,-505.40530386,0.00025203,2]
[398897633,1765974636874,-500.0,0.00025203,2]
[398897634,1765974636897,-500.0,0.00025203,2]
[398897635,1765974636920,-500.0,0.00025203,2]
[398897636,1765974636947,-500.0,0.00025203,2]
[398897637,1765974636969,-500.0,0.00025203,2]
[398897638,1765974636993,-500.0,0.00025203,2]
[398897652,1765974637583,150.0,9.049e-05,2]
[398897667,1765974637717,-305.49592558,0.0003099,2]
[398897669,1765974637727,-1762.03257598,0.0003112,2]
[398897671,1765974637738,-406.0,0.0003112,2]
[398897688,1765974638013,150.0,9.872e-05,2]
[398897689,1765974638417,150.0,0.00010695,2]
[398897690,1765974638852,150.0,0.00011517,2]
[398897712,1765974639960,-3e-08,0.0003112,2]
[398897713,1765974639970,-1129.375,0.0003112,2]
[398897714,1765974639981,-469.03699351,0.0003112,2]
[398897882,1765974704879,150.0,9.042e-05,2]
[398897883,1765974705266,150.0,9.864e-05,2]
[398897884,1765974705770,150.0,0.00010686,2]
[398897885,1765974727434,501.25831688,0.00013699,2]
[398897887,1765974771238,150.0,9.076e-05,2]
[398897888,1765974771655,150.0,9.901e-05,2]
[398897889,1765974772132,150.0,0.00010726,2]
[398897890,1765974772461,150.0,0.00011551,2]
[398897891,1765974837931,150.0,9.138e-05,2]
[398897892,1765974838349,150.0,9.969e-05,2]
[398897893,1765974838741,150.0,0.000108,2]
[398897894,1765974839165,150.0,0.00011631,2]
[398897896,1765974935519,1038.39,0.00015,2]
[398897897,1765974969220,800.0,0.00015,2]
[398897898,1765974973635,504.10592962,0.00013699,2]
[398897900,1765975189711,-419.1,0.0002155,2]
[398897901,1765975189736,-218.361616,0.00023262,2]
[398897902,1765975189759,-2935.93574295,0.00024899,2]
[398897903,1765975189783,-300.0,0.00024997,2]
[398897904,1765975189805,-1200.0,0.00024998,2]
[398897905,1765975189829,-500.0,0.00024998,2]
[398897906,1765975189852,-500.0,0.00024998,2]
[398897907,1765975189878,-500.0,0.00024998,2]
[398897908,1765975189901,-500.0,0.00024998,2]
[398897909,1765975189923,-500.0,0.00024998,2]
[398897910,1765975189948,-500.0,0.00024998,2]
[398897911,1765975189970,-500.0,0.00024998,2]
[398897912,1765975189993,-500.0,0.00024998,2]
[398897913,1765975190015,-500.0,0.00024998,2]
[398897914,1765975190038,-500.0,0.00024998,2]
[398897915,1765975190062,-500.0,0.00024998,2]
[398897916,1765975190085,-500.0,0.00024998,2]
[398897917,1765975190235,-500.0,0.00024998,2]
[398897918,1765975190258,-500.0,0.00024998,2]
[398897919,1765975190282,-207.82945402,0.00024998,2]
[398897920,1765975190308,-500.0,0.00024998,2]
[398897921,1765975190331,-500.0,0.00024998,2]
[398897922,1765975190354,-500.0,0.00024998,2]
[398897923,1765975190377,-500.0,0.00024998,2]
[398897924,1765975190401,-500.0,0.00024998,2]
[398897925,1765975190425,-500.0,0.00024998,2]
[398897926,1765975190452,-500.0,0.00024998,2]
[398897927,1765975190476,-500.0,0.00024998,2]
[398897928,1765975190500,-500.0,0.00024998,2]
[398897929,1765975190522,-500.0,0.00024998,2]
[398897930,1765975190545,-500.0,0.00024998,2]
[398897931,1765975190571,-500.0,0.00024998,2]
[398897932,1765975190593,-500.0,0.00024998,2]
[398897933,1765975190618,-500.0,0.00024998,2]
[398897934,1765975190640,-550.54053039,0.00024998,2]
[398897935,1765975190662,-500.0,0.00024998,2]
[398897936,1765975190684,-500.0,0.00024998,2]
[398897937,1765975190706,-500.0,0.00024998,2]
[398897938,1765975190729,-500.0,0.00024998,2]
[398897939,1765975190752,-500.0,0.00024998,2]
[398897940,1765975190775,-500.0,0.00024998,2]
[398897941,1765975190800,-500.0,0.00024998,2]
[398897942,1765975190823,-500.0,0.00024998,2]
[398897943,1765975190848,-500.0,0.00024998,2]
[398897944,1765975190876,-500.0,0.00024998,2]
[398897945,1765975190900,-500.0,0.00024998,2]
[398897946,1765975190924,-500.0,0.00024998,2]
[398897947,1765975190949,-500.0,0.00024998,2]
[398897948,1765975190972,-500.0,0.00024998,2]
[398897949,1765975190996,-500.0,0.00024998,2]
[398897950,1765975191020,-500.0,0.00024998,2]
[398897951,1765975191045,-500.0,0.00024998,2]
[398897952,1765975191070,-500.0,0.00024998,2]
[398897953,1765975191095,-500.0,0.00024998,2]
[398897954,1765975191119,-500.0,0.00024998,2]
[398897955,1765975191143,-500.0,0.00024998,2]
[398897956,1765975191167,-500.0,0.00024998,2]
[398897957,1765975191190,-500.0,0.00024998,2]
[398897958,1765975191215,-500.0,0.00024998,2]
[398897959,1765975191238,-500.0,0.00024998,2]
[398897960,1765975191263,-500.0,0.00024998,2]
[398897961,1765975191289,-500.0,0.00024998,2]
[398897962,1765975191315,-500.0,0.00024998,2]
[398897963,1765975191339,-500.0,0.00024998,2]
[398897964,1765975191363,-500.0,0.00024998,2]
[398897965,1765975191387,-641.62188672,0.00024998,2]
[398897966,1765975191411,-500.0,0.00024998,2]
[398897967,1765975191434,-500.0,0.00024998,2]
[398897968,1765975191458,-500.0,0.00024998,2]
[398897969,1765975191484,-500.0,0.00024998,2]
[398897970,1765975191509,-500.0,0.00024998,2]
[398897971,1765975191533,-500.0,0.00024998,2]
[398897972,1765975191560,-500.0,0.00024998,2]
[398897973,1765975191584,-500.0,0.00024998,2]
[398897974,1765975191607,-500.0,0.00024998,2]
[398897975,1765975191630,-500.0,0.00024998,2]
[398897976,1765975191653,-500.0,0.00024998,2]
[398897977,1765975191680,-500.0,0.00024998,2]
[398897978,1765975191710,-500.0,0.00024998,2]